bitfinex/quotes_BTCUSD_20251205
["timestamp","ask_amount","ask_price","bid_price","bid_amount"]
[1764942444855,0.73337858,90418.0,90417.0,0.00123806]
[1764942445072,0.93242547,90418.0,90417.0,0.00123806]
[1764942445333,0.94878547,90418.0,90417.0,0.00123806]
[1764942445509,0.92718547,90418.0,90417.0,0.00123806]
[1764942445758,0.01106011,90415.0,90411.0,0.0110606]
[1764942445958,0.595131,90412.0,90411.0,0.23239155]
[1764942446113,0.60515158,90412.0,90411.0,0.23239155]
[1764942446457,0.56990258,90412.0,90411.0,0.00011994]
[1764942447205,0.58390258,90412.0,90411.0,0.00111994]
[1764942447403,0.34702058,90412.0,90411.0,0.00111994]
[1764942447649,0.36474058,90412.0,90411.0,0.00111994]
[1764942447859,0.48053858,90412.0,90411.0,0.00111994]
[1764942448056,0.65207558,90412.0,90411.0,0.01111994]
[1764942448258,0.58152558,90412.0,90411.0,0.01111994]
[1764942448463,0.56104358,90412.0,90411.0,0.01111994]
[1764942448667,0.22119186,90420.0,90411.0,0.01111994]
[1764942448668,0.02897341,90437.0,90436.0,0.22115086]
[1764942448879,0.00123788,90443.0,90436.0,0.22115086]
[1764942448880,0.00123788,90443.0,90442.0,0.22113619]
[1764942449177,0.00123788,90443.0,90442.0,0.22274906]
[1764942449410,0.01899788,90443.0,90442.0,0.25642767]
[1764942450251,0.01899788,90443.0,90437.0,0.01105742]
[1764942450252,0.12778788,90443.0,90437.0,0.01105742]
[1764942450464,0.12778788,90443.0,90411.0,0.45242373]
[1764942450465,1.017039,90437.0,90432.0,0.01105803]
[1764942450666,1.017039,90437.0,90435.0,0.22115213]
[1764942450902,0.09243,90436.0,90435.0,0.22115213]
[1764942451017,1.204096,90436.0,90435.0,0.22115213]
[1764942451221,1.220746,90436.0,90435.0,0.22115213]
[1764942451858,1.543746,90436.0,90435.0,0.22215213]
[1764942452309,0.549822,90436.0,90435.0,0.22215213]
[1764942452528,0.41659388,90443.0,90442.0,0.22113619]
[1764942452746,0.57297788,90443.0,90442.0,0.22113619]
[1764942452947,0.43377888,90443.0,90442.0,0.22113619]
[1764942453139,0.54754088,90443.0,90442.0,0.22113619]
[1764942453699,0.66157088,90443.0,90442.0,0.22113619]
[1764942454043,0.68622088,90443.0,90442.0,0.22113619]
[1764942454269,0.55554088,90443.0,90442.0,0.22113619]
[1764942454404,0.02699788,90443.0,90442.0,0.22113619]
[1764942455239,0.02695788,90443.0,90442.0,0.22274906]
[1764942456057,0.01895788,90443.0,90442.0,0.22274906]
[1764942456418,0.01895788,90443.0,90442.0,0.23074906]
[1764942456602,0.01895788,90443.0,90442.0,0.22274906]
[1764942456774,0.01895788,90443.0,90441.0,0.22113839]
[1764942456775,0.12774788,90443.0,90441.0,0.22113729]
[1764942456958,0.06433788,90443.0,90442.0,0.006]
[1764942457168,0.0216,90438.0,90436.0,0.23220818]
[1764942457372,1.46644855,90437.0,90436.0,0.23220818]
[1764942457683,0.696389,90437.0,90436.0,0.23220818]
[1764942457862,0.696389,90437.0,90409.0,0.44266699]
[1764942457863,0.323,90434.0,90430.0,0.23222257]
[1764942458067,0.0216,90429.0,90428.0,0.23222847]
[1764942458385,0.0216,90428.0,90427.0,0.23223001]
[1764942458594,0.0216,90428.0,90417.0,0.22119627]
[1764942458595,0.0216,90425.0,90422.0,0.23224397]
[1764942458797,0.0216,90425.0,90409.0,0.00023803]
[1764942458798,2.60947957,90412.0,90411.0,0.01]
[1764942459002,2.73456449,90412.0,90411.0,0.01]
[1764942459252,2.86412671,90412.0,90411.0,0.01]
[1764942459480,2.82549449,90412.0,90411.0,0.01]
[1764942459686,2.82549449,90412.0,90384.0,0.0110639]
[1764942459687,2.82549449,90412.0,90378.0,0.01106463]
[1764942459688,0.01106341,90388.0,90378.0,0.01106463]
[1764942459832,0.0216,90390.0,90380.0,0.01106439]
[1764942459833,0.0216,90381.0,90380.0,0.01106439]
[1764942460407,0.0216,90381.0,90378.0,0.00011994]
[1764942460408,0.22129034,90379.0,90378.0,0.00011994]
[1764942460588,0.56589034,90379.0,90378.0,0.00011994]
[1764942460757,0.70523034,90379.0,90378.0,0.00011994]
[1764942461184,0.48394,90379.0,90378.0,0.00011994]
[1764942462074,0.46234,90379.0,90378.0,0.00011994]
[1764942462269,0.40417,90379.0,90378.0,0.00011994]
[1764942462668,0.38641,90379.0,90378.0,0.00011994]
[1764942462876,0.38641,90379.0,90378.0,0.07205369]
[1764942462877,0.324,90379.0,90378.0,0.07205369]
[1764942463145,0.324,90379.0,90378.0,0.22988656]
[1764942463146,0.001,90379.0,90378.0,0.22988656]
[1764942463274,0.001,90379.0,90378.0,0.07366656]
[1764942463678,0.01772,90382.0,90379.0,0.23235485]
[1764942463862,0.660405,90380.0,90379.0,0.23235216]
[1764942464069,0.740031,90380.0,90379.0,0.23235216]
[1764942464761,0.615616,90380.0,90379.0,0.23235216]
[1764942464959,0.465296,90380.0,90379.0,0.23235216]
[1764942465161,0.34072,90380.0,90379.0,0.23235216]
[1764942465366,0.36232,90380.0,90379.0,0.23235216]
[1764942465537,0.0216,90379.0,90378.0,0.00011994]
[1764942465776,1.00116293,90379.0,90378.0,0.00011994]
[1764942465949,1.00116293,90379.0,90378.0,0.00211994]
[1764942465950,0.992297,90379.0,90378.0,0.00211994]
[1764942466158,0.970697,90379.0,90378.0,0.0010427]
[1764942466932,0.437225,90379.0,90378.0,0.0010427]
[1764942467101,0.463062,90379.0,90378.0,0.0010427]
[1764942467279,0.324,90379.0,90378.0,0.0010427]
[1764942467460,0.484162,90379.0,90378.0,0.0010427]
[1764942467662,0.566239,90379.0,90378.0,0.0010427]
[1764942468089,0.695719,90379.0,90378.0,0.0010427]
[1764942468289,0.674119,90379.0,90378.0,0.0010427]
[1764942468497,0.694719,90379.0,90378.0,0.0010427]
[1764942468699,0.81319406,90379.0,90378.0,0.0010427]
[1764942468868,0.81319406,90379.0,90378.0,0.0190427]
[1764942469077,0.0216,90359.0,90358.0,0.23240805]
[1764942469379,0.03932,90359.0,90358.0,0.23280709]
[1764942469579,0.53273,90359.0,90358.0,0.23280709]
[1764942470011,0.43871,90359.0,90358.0,0.23280709]
[1764942470363,0.48685,90359.0,90358.0,0.23280709]
[1764942470794,1.464712,90359.0,90358.0,0.23280709]
[1764942471035,0.517171,90359.0,90358.0,0.23280709]
[1764942471242,0.565311,90359.0,90358.0,0.23280709]
[1764942471690,0.01106586,90368.0,90358.0,0.23280709]
[1764942471691,0.001,90379.0,90378.0,0.22129279]
[1764942471903,0.001,90379.0,90378.0,0.54590566]
[1764942472424,0.04554,90397.0,90396.0,0.22124872]
[1764942472607,0.256019,90397.0,90396.0,0.22124872]
[1764942472761,0.04554,90397.0,90396.0,0.22124872]
[1764942473151,0.01776,90404.0,90403.0,0.22123159]
[1764942473393,0.189519,90404.0,90403.0,0.22123159]
[1764942473573,0.235059,90404.0,90403.0,0.22123159]
[1764942473781,0.04554,90404.0,90403.0,0.28080736]
[1764942474005,0.09402,90413.0,90411.0,0.22121202]
[1764942474227,0.06563,90412.0,90411.0,0.22121202]
[1764942474423,0.167692,90412.0,90411.0,0.22121202]
[1764942474632,0.204392,90412.0,90411.0,0.22121202]
[1764942475049,0.266442,90412.0,90411.0,0.22121202]
[1764942475253,0.38876294,90412.0,90411.0,0.22121202]
[1764942475471,0.38876294,90412.0,90408.0,0.2212172]
[1764942475472,0.0216,90408.0,90403.0,0.01106157]
[1764942475672,2.0,90411.0,90393.0,0.0110628]
[1764942475673,0.0216,90399.0,90393.0,0.0110628]
[1764942475919,1.222642,90394.0,90392.0,0.01106292]
[1764942476116,0.0216,90389.0,90388.0,0.01106341]
[1764942476330,0.11517823,90389.0,90388.0,0.01106341]
[1764942476546,0.0216,90386.0,90385.0,0.01106378]
[1764942476784,0.40668,90386.0,90383.0,0.01106402]
[1764942476992,0.0216,90377.0,90376.0,0.01106488]
[1764942477244,0.06592,90384.0,90373.0,0.01106525]
[1764942477245,0.0216,90374.0,90373.0,0.01106525]
[1764942477458,0.03936,90374.0,90373.0,0.01106525]
[1764942477680,0.52425,90374.0,90371.0,0.23237282]
[1764942477890,0.08752,90371.0,90369.0,0.01106574]
[1764942478107,0.11373,90374.0,90369.0,0.23277864]
[1764942478108,0.08752,90370.0,90369.0,0.23277864]
[1764942478315,0.08752,90370.0,90369.0,0.01146478]
[1764942478547,0.18349,90370.0,90369.0,0.01146478]
[1764942478775,0.50649,90370.0,90369.0,0.01146478]
[1764942479001,0.323,90370.0,90369.0,0.08232749]
[1764942479202,0.38892,90370.0,90369.0,0.08232749]
[1764942479438,0.49389,90370.0,90369.0,0.08232749]
[1764942479656,0.48489,90370.0,90369.0,0.08232749]
[1764942479824,0.48489,90370.0,90369.0,0.01146478]
[1764942480040,0.49089,90370.0,90369.0,0.01146478]
[1764942480245,0.49089,90370.0,90369.0,0.02146478]
[1764942480246,0.48489,90370.0,90369.0,0.02146478]
[1764942480425,0.48489,90370.0,90369.0,0.02173274]
[1764942481165,0.22128447,90382.0,90369.0,0.02173274]
[1764942481166,0.09597,90400.0,90397.0,0.01106231]
[1764942481318,0.481528,90398.0,90397.0,0.22124569]
[1764942481671,0.129584,90394.0,90392.0,0.22125724]
[1764942481884,0.02319825,90409.0,90403.0,0.22123159]
[1764942482098,0.09597,90416.0,90403.0,0.22123159]
[1764942482539,0.04554,90421.0,90418.0,0.01105974]
[1764942482540,0.04817,90419.0,90418.0,0.01105974]
[1764942482749,0.06593,90419.0,90418.0,0.01105974]
[1764942482963,0.06761474,90419.0,90418.0,0.01105974]
[1764942483176,0.22633474,90419.0,90418.0,0.01105974]
[1764942483651,0.01944474,90419.0,90418.0,0.01267261]
[1764942483897,0.00168474,90419.0,90418.0,0.01267261]
[1764942484101,0.00011987,90421.0,90420.0,0.02150397]
[1764942484327,0.00011987,90421.0,90420.0,0.00161287]
[1764942484543,0.00011987,90421.0,90420.0,0.08563983]
[1764942485187,0.01656735,90457.0,90420.0,0.08563983]
[1764942485188,0.01656735,90457.0,90455.0,0.22110441]
[1764942485400,0.01656735,90457.0,90447.0,0.01105619]
[1764942485401,0.173467,90471.0,90470.0,0.22106775]
[1764942485628,0.827135,90470.0,90469.0,0.22106875]
[1764942485843,0.04828996,90471.0,90469.0,0.22106875]
[1764942486057,0.01776,90470.0,90469.0,0.22106875]
[1764942486271,0.01776,90470.0,90469.0,0.29232003]
[1764942486920,0.00011996,90471.0,90469.0,0.29232003]
[1764942488225,0.008,90470.0,90469.0,0.29232003]
[1764942488439,0.00011996,90471.0,90469.0,0.29232003]
[1764942488894,0.00011996,90471.0,90470.0,0.00161287]
[1764942489107,0.00011996,90471.0,90470.0,0.03369465]
[1764942490622,0.00011996,90471.0,90470.0,0.00161287]
[1764942490841,0.00011996,90471.0,90469.0,0.22106875]
[1764942490842,0.00011996,90471.0,90465.0,0.01105399]
[1764942491058,0.01105448,90461.0,90454.0,0.22110496]
[1764942491303,0.01776,90461.0,90454.0,0.01105534]
[1764942491517,0.01776,90461.0,90458.0,0.22109586]
[1764942491729,0.01776,90461.0,90453.0,0.01105546]
[1764942491730,0.11409,90455.0,90453.0,0.01105546]
[1764942491940,0.11409,90455.0,90453.0,0.23216436]
[1764942492162,0.48489,90454.0,90453.0,0.23216436]
[1764942492380,0.323,90454.0,90453.0,0.23216436]
[1764942492599,0.003,90461.0,90460.0,0.22109219]
[1764942492817,0.01772,90461.0,90460.0,0.22109219]
[1764942493033,0.323,90474.0,90460.0,0.22109219]
[1764942493034,0.323,90474.0,90470.0,0.22106775]
[1764942493245,0.01772,90475.0,90470.0,0.22106775]
[1764942493480,0.09608996,90471.0,90470.0,0.22106775]
[1764942493695,0.00011996,90471.0,90470.0,0.22106775]
[1764942495507,0.00011996,90471.0,90470.0,0.22906775]
[1764942495745,0.84583996,90471.0,90470.0,0.008]
[1764942495948,0.01105375,90467.0,90463.0,0.23213716]
[1764942496169,0.323,90470.0,90430.0,0.52876648]
[1764942496170,0.323,90459.0,90454.0,0.01105534]
[1764942496374,0.04817,90458.0,90457.0,0.22109831]
[1764942496503,0.323,90459.0,90457.0,0.22109831]
[1764942496711,0.323,90459.0,90455.0,0.01105522]
[1764942496712,0.21006,90458.0,90455.0,0.01105522]
[1764942496911,0.38892,90456.0,90455.0,0.23215872]
[1764942497359,0.38892,90456.0,90455.0,0.01105522]
[1764942497947,0.323,90457.0,90456.0,0.22110197]
[1764942498120,0.01772,90459.0,90458.0,0.22109708]
[1764942498324,0.01772,90459.0,90458.0,0.22270995]
[1764942499290,0.323,90477.0,90470.0,0.22106775]
[1764942499500,0.01772,90477.0,90470.0,0.27807322]
[1764942500768,0.04817,90498.0,90479.0,0.22104576]
[1764942501003,0.00059963,90480.0,90479.0,0.22272863]
[1764942502096,0.00059963,90480.0,90479.0,0.22672863]
[1764942502522,0.00241306,90480.0,90479.0,0.22665863]
[1764942502810,0.00241306,90480.0,90479.0,0.29730774]
[1764942503016,0.00241306,90480.0,90479.0,0.22504576]
[1764942503840,0.00241306,90480.0,90479.0,0.22665863]
[1764942504464,0.00241306,90480.0,90479.0,0.22265863]
[1764942504672,0.00741306,90480.0,90479.0,0.22265863]
[1764942504899,0.00741306,90480.0,90479.0,0.22104576]
[1764942505108,0.00241306,90480.0,90479.0,0.22104576]
[1764942505317,0.00241306,90480.0,90479.0,0.22472863]
[1764942505733,0.00241306,90480.0,90479.0,0.22272863]
[1764942505939,0.00241306,90480.0,90479.0,0.22572863]
[1764942506150,0.00241306,90480.0,90479.0,0.33540179]
[1764942506362,0.00241306,90480.0,90479.0,0.32382782]
[1764942506603,0.00241306,90480.0,90479.0,0.32375782]
[1764942507599,0.00241306,90480.0,90479.0,0.32775782]
[1764942507773,0.00241306,90480.0,90479.0,0.32782782]
[1764942508514,0.00241306,90480.0,90479.0,0.34940179]
[1764942508928,0.00241306,90480.0,90479.0,0.32782782]
[1764942509291,0.00241306,90480.0,90479.0,0.32789782]
[1764942509486,0.00241306,90480.0,90479.0,0.34940179]
[1764942509912,0.00241306,90480.0,90479.0,0.32782782]
[1764942510494,0.00241306,90480.0,90479.0,0.32775782]
[1764942511489,0.47862306,90480.0,90479.0,0.014]
[1764942511736,0.34313306,90480.0,90479.0,0.014]
[1764942511940,0.49634306,90480.0,90479.0,0.014]
[1764942512296,0.49634306,90480.0,90479.0,0.01]
[1764942512693,0.49634306,90480.0,90479.0,0.012]
[1764942512899,0.40561306,90480.0,90479.0,0.012]
[1764942513193,0.38789306,90480.0,90479.0,0.012]
[1764942513420,0.40561306,90480.0,90479.0,0.23304576]
[1764942513629,0.00241306,90480.0,90479.0,0.32598189]
[1764942514165,0.00241306,90480.0,90479.0,0.23304576]
[1764942515260,0.06489306,90480.0,90479.0,0.23304576]
[1764942515460,0.15562306,90480.0,90479.0,0.23304576]
[1764942516310,0.00241306,90480.0,90479.0,0.23304576]
[1764942516727,0.15562306,90480.0,90479.0,0.23304576]
[1764942517100,0.06489306,90480.0,90479.0,0.23304576]
[1764942517504,0.00241306,90480.0,90479.0,0.23304576]
[1764942517903,0.00241306,90480.0,90479.0,0.32598189]
[1764942518148,0.00241306,90480.0,90479.0,0.23304576]
[1764942520209,0.06489306,90480.0,90479.0,0.23304576]
[1764942520419,0.00241306,90480.0,90479.0,0.23304576]
[1764942520632,0.00241306,90480.0,90479.0,0.012]
[1764942520633,0.47862306,90480.0,90479.0,0.012]
[1764942520839,1.18803106,90480.0,90479.0,0.012]
[1764942521056,1.43239178,90480.0,90479.0,0.012]
[1764942521267,1.45399178,90480.0,90479.0,0.012]
[1764942521868,1.45399178,90480.0,90479.0,0.01]
[1764942522155,1.45799178,90480.0,90479.0,0.01]
[1764942522378,1.4912069,90480.0,90479.0,0.01]
[1764942522583,1.45799178,90480.0,90479.0,0.01]
[1764942523438,1.45399178,90480.0,90479.0,0.01]
[1764942523645,1.2661706,90480.0,90479.0,0.01]
[1764942523849,1.23694846,90480.0,90479.0,0.01]
[1764942524070,1.48321392,90480.0,90479.0,0.01]
[1764942524301,1.23694846,90480.0,90479.0,0.23104576]
[1764942524498,1.24094846,90480.0,90479.0,0.01]
[1764942524830,1.23694846,90480.0,90479.0,0.23104576]
[1764942525033,1.23294846,90480.0,90479.0,0.23104576]
[1764942525354,0.35673046,90480.0,90479.0,0.23104576]
[1764942525593,0.00641306,90480.0,90479.0,0.23279863]
[1764942526089,0.00941306,90480.0,90479.0,0.23279863]
[1764942526507,0.00941306,90480.0,90479.0,0.2543026]
[1764942526508,0.00541306,90480.0,90479.0,0.2543026]
[1764942527013,0.00941306,90480.0,90479.0,0.2543026]
[1764942527209,0.00241306,90480.0,90479.0,0.2543026]
[1764942527428,0.00241306,90480.0,90479.0,0.23779863]
[1764942527552,0.00241306,90480.0,90479.0,0.23879863]
[1764942528970,0.00241306,90480.0,90479.0,0.30132162]
[1764942529184,0.05823289,90515.0,90499.0,0.22099691]
[1764942529185,0.01768,90513.0,90499.0,0.22099691]
[1764942529390,0.00031982,90500.0,90499.0,0.22267978]
[1764942529835,0.00031982,90500.0,90499.0,0.22260978]
[1764942530209,0.00031982,90500.0,90499.0,0.31338173]
[1764942530557,0.00031982,90500.0,90499.0,0.31638173]
[1764942533123,0.00031982,90500.0,90499.0,0.22099691]
[1764942533568,0.00031982,90500.0,90499.0,0.22267978]
[1764942534697,0.00031982,90500.0,90499.0,0.22274978]
[1764942535105,0.00091406,90500.0,90499.0,0.22274978]
[1764942535324,0.00091406,90500.0,90499.0,0.24425375]
[1764942535524,0.00091406,90500.0,90499.0,0.3371901]
[1764942536165,0.00091406,90500.0,90499.0,0.31568613]
[1764942536377,1e-08,90500.0,90499.0,0.39971309]
[1764942536585,0.0002,90530.0,90529.0,0.22092368]
[1764942536784,0.0003198,90530.0,90529.0,0.22092368]
[1764942537033,0.0003198,90530.0,90529.0,0.25402904]
[1764942537845,0.4825098,90530.0,90529.0,0.22092368]
[1764942538019,0.4825098,90530.0,90529.0,0.22192368]
[1764942538257,0.6166018,90530.0,90529.0,0.002]
[1764942538468,0.01104703,90522.0,90499.0,0.44360404]
[1764942538675,1.08443,90519.0,90518.0,0.22095034]
[1764942538885,1.046617,90519.0,90518.0,0.22095034]
[1764942539111,1.021207,90519.0,90518.0,0.22095034]
[1764942539314,0.952147,90519.0,90518.0,0.22095034]
[1764942539800,0.693496,90519.0,90518.0,0.22095034]
[1764942540493,0.628066,90519.0,90518.0,0.22095034]
[1764942540942,0.787256,90519.0,90518.0,0.22095034]
[1764942541695,0.693496,90519.0,90518.0,0.22095034]
[1764942541899,0.323,90519.0,90518.0,0.22095034]
[1764942542108,0.0003198,90530.0,90529.0,0.22092368]
[1764942542301,0.0003198,90530.0,90529.0,0.29058699]
[1764942542302,0.00121076,90530.0,90529.0,0.29058699]
[1764942542508,0.00121076,90530.0,90529.0,0.29051699]
[1764942543050,0.00121076,90530.0,90529.0,0.29219986]
[1764942543844,0.00121076,90530.0,90529.0,0.29226986]
[1764942544651,0.00121076,90530.0,90529.0,0.31377383]
[1764942545323,0.00121076,90530.0,90529.0,0.35479285]
[1764942545652,0.0002,90540.0,90539.0,0.24240325]
[1764942545852,0.0002,90540.0,90539.0,0.3727896]
[1764942545853,1e-08,90540.0,90539.0,0.3727896]
[1764942546071,1e-08,90540.0,90539.0,0.3728596]
[1764942547289,1e-08,90540.0,90539.0,0.6958596]
[1764942547492,1e-08,90540.0,90539.0,0.67735563]
[1764942547718,1e-08,90540.0,90539.0,0.6822196]
[1764942547947,0.0002,90570.0,90559.0,0.22085049]
[1764942548128,0.00031978,90560.0,90559.0,0.35064436]
[1764942548384,1e-08,90560.0,90559.0,0.35071436]
[1764942548518,0.0002,90570.0,90559.0,0.35071436]
[1764942548519,0.0002,90570.0,90569.0,0.30485307]
[1764942548879,0.0002,90570.0,90569.0,0.30653594]
[1764942549019,0.0002,90570.0,90569.0,0.30660594]
[1764942549224,0.0002,90570.0,90569.0,0.35766312]
[1764942549844,0.0002,90570.0,90569.0,0.31278013]
[1764942550247,0.0002,90570.0,90569.0,0.38130312]
[1764942550465,0.0002,90570.0,90569.0,0.22243898]
[1764942550952,0.0002,90570.0,90569.0,0.22843898]
[1764942551177,0.0002,90570.0,90569.0,0.22343898]
[1764942551382,0.0002,90570.0,90569.0,0.22843898]
[1764942551735,0.0002,90570.0,90569.0,0.22943898]
[1764942552558,0.0002,90570.0,90569.0,0.22343898]
[1764942552802,0.0002,90570.0,90569.0,0.22243898]
[1764942553030,0.0002,90570.0,90569.0,0.22543898]
[1764942553211,0.0022,90570.0,90569.0,0.31344111]
[1764942553468,0.22082736,90569.0,90562.0,0.01104215]
[1764942553679,0.06543,90568.0,90567.0,0.23187135]
[1764942553882,0.06543,90568.0,90567.0,0.00011978]
[1764942554051,1.41576556,90568.0,90567.0,0.00011978]
[1764942554220,1.121734,90568.0,90567.0,0.00011978]
[1764942554425,0.783809,90568.0,90567.0,0.00011978]
[1764942554714,0.748201,90568.0,90567.0,0.00011978]
[1764942555154,0.769801,90568.0,90567.0,0.00011978]
[1764942555568,0.748201,90568.0,90567.0,0.00011978]
[1764942556281,0.773801,90568.0,90567.0,0.00011978]
[1764942556483,0.773801,90568.0,90490.0,0.07924751]
[1764942556484,0.01104423,90545.0,90541.0,0.23193811]
[1764942556707,0.115,90542.0,90541.0,0.23193811]
[1764942557451,0.37257,90542.0,90541.0,0.23193811]
[1764942557604,0.37257,90542.0,90541.0,0.23393811]
[1764942557791,0.37257,90542.0,90541.0,0.32561182]
[1764942557991,0.37257,90542.0,90541.0,0.32361182]
[1764942558201,0.37257,90542.0,90541.0,0.32461182]
[1764942559344,0.37257,90542.0,90541.0,0.32361182]
[1764942559501,0.37457,90542.0,90541.0,0.32361182]
[1764942559913,0.37257,90542.0,90541.0,0.32361182]
[1764942560518,0.323,90542.0,90541.0,0.32361182]
[1764942560938,0.04957,90549.0,90548.0,0.22087732]
[1764942561141,0.489165,90559.0,90558.0,0.22085132]
[1764942561394,0.01775971,90559.0,90558.0,0.22085132]
[1764942561604,0.01775971,90559.0,90551.0,0.0110435]
[1764942561605,0.01104289,90556.0,90551.0,0.0110435]
[1764942561809,0.01104289,90556.0,90510.0,0.66388703]
[1764942561810,0.23192517,90547.0,90539.0,0.22089843]
[1764942562024,0.0216,90543.0,90542.0,0.23193655]
[1764942562236,0.323,90542.0,90540.0,0.231941]
[1764942562517,0.06543,90541.0,90540.0,0.231941]
[1764942562724,0.323,90542.0,90540.0,0.28368497]
[1764942563400,0.2442432,90557.0,90540.0,0.28368497]
[1764942563401,0.01764,90545.0,90544.0,0.22088708]
[1764942563579,0.11032735,90560.0,90540.0,0.28368497]
[1764942563580,0.150636,90558.0,90557.0,0.22085505]
[1764942563790,0.457002,90558.0,90557.0,0.22085505]
[1764942563959,0.34064,90558.0,90557.0,0.22085505]
[1764942565907,0.40745,90558.0,90557.0,0.22085505]
[1764942566303,0.40798429,90558.0,90557.0,0.22085505]
[1764942566533,0.49891429,90558.0,90556.0,0.01104289]
[1764942566684,0.323,90555.0,90546.0,0.01104411]
[1764942566886,0.06281,90550.0,90549.0,0.23191862]
[1764942567087,0.06281,90550.0,90546.0,0.23192416]
[1764942567088,0.6282826,90550.0,90546.0,0.23192416]
[1764942567308,0.06281,90547.0,90545.0,0.23192876]
[1764942567474,0.08045,90546.0,90545.0,0.23192876]
[1764942568238,0.01104301,90555.0,90545.0,0.23192876]
[1764942568239,0.02341974,90550.0,90549.0,0.22087488]
[1764942568448,0.0292624,90559.0,90549.0,0.22087488]
[1764942568449,0.00011971,90559.0,90557.0,0.22085537]
[1764942568644,0.737015,90559.0,90557.0,0.22085453]
[1764942568856,0.740806,90563.0,90562.0,0.22084317]
[1764942569024,0.31644644,90563.0,90562.0,0.22084317]
[1764942569204,0.109718,90566.0,90565.0,0.22083586]
[1764942569617,0.172528,90566.0,90565.0,0.22083586]
[1764942569823,0.263458,90566.0,90565.0,0.22083586]
[1764942570022,0.176045,90566.0,90565.0,0.22083586]
[1764942570202,0.266975,90566.0,90565.0,0.22083586]
[1764942570405,0.323,90564.0,90562.0,0.01104215]
[1764942570620,0.323,90564.0,90559.0,0.23189105]
[1764942570621,0.988626,90561.0,90559.0,0.23189105]
[1764942570824,0.24245293,90558.0,90557.0,0.01]
[1764942571061,1.53439284,90558.0,90557.0,0.01]
[1764942571269,1.62532284,90558.0,90557.0,0.01]
[1764942572790,0.81662091,90558.0,90557.0,0.01]
[1764942573000,0.44746591,90558.0,90557.0,0.01]
[1764942573252,0.64931629,90558.0,90557.0,0.01]
[1764942573476,0.3497622,90558.0,90557.0,0.01]
[1764942573685,0.32631629,90558.0,90557.0,0.01]
[1764942573995,0.43484629,90558.0,90557.0,0.01]
[1764942574214,0.43484629,90558.0,90557.0,0.1331991]
[1764942574215,0.00053429,90558.0,90557.0,0.1331991]
[1764942574424,0.00053429,90558.0,90557.0,0.2007491]
[1764942574632,0.00053429,90558.0,90557.0,0.22225307]
[1764942575668,0.00053429,90558.0,90557.0,0.23539042]
[1764942575876,0.00053429,90558.0,90557.0,0.21882307]
[1764942576299,0.00453429,90558.0,90557.0,0.21882307]
[1764942576711,0.00053429,90558.0,90557.0,0.22182307]
[1764942576916,0.00053429,90558.0,90557.0,0.1973191]
[1764942577121,0.00053429,90558.0,90557.0,0.14909086]
[1764942577337,0.00053429,90558.0,90557.0,0.20500086]
[1764942577540,0.00053429,90558.0,90557.0,0.19800086]
[1764942577948,0.00053429,90558.0,90557.0,0.20200086]
[1764942578170,0.00053429,90558.0,90557.0,0.19900086]
[1764942578789,0.0002,90570.0,90569.0,0.22082611]
[1764942578998,0.0002,90570.0,90569.0,0.39426446]
[1764942579204,0.0002,90570.0,90569.0,0.27680446]
[1764942579815,0.0002,90570.0,90569.0,0.32671446]
[1764942579967,0.0002,90570.0,90569.0,0.27680446]
[1764942580377,0.0002,90570.0,90569.0,0.22082611]
[1764942580833,0.0002,90570.0,90569.0,0.22243898]
[1764942581458,0.0002,90570.0,90569.0,0.32225898]
[1764942582125,0.0002,90570.0,90569.0,0.34376295]
[1764942582563,0.0002,90570.0,90569.0,0.32225898]
[1764942582840,0.0002,90570.0,90569.0,0.44786831]
[1764942582980,0.0002,90570.0,90569.0,0.42636434]
[1764942583188,0.0002,90570.0,90569.0,0.45186831]
[1764942584048,0.0002,90570.0,90569.0,0.8373913]
[1764942584049,1e-08,90570.0,90569.0,0.8373913]
[1764942584253,1e-08,90580.0,90579.0,0.27071173]
[1764942584458,1e-08,90580.0,90579.0,0.38331492]
[1764942584683,1e-08,90580.0,90579.0,0.44583791]
[1764942584903,1e-08,90580.0,90579.0,0.76883791]
[1764942585715,1e-08,90580.0,90579.0,0.78540526]
[1764942586161,1e-08,90580.0,90579.0,0.29526095]
[1764942586337,1e-08,90580.0,90579.0,0.36281095]
[1764942586542,1e-08,90580.0,90579.0,0.38431492]
[1764942587154,1e-08,90580.0,90579.0,0.31690095]
[1764942587363,1e-08,90580.0,90579.0,0.24535095]
[1764942587776,1e-08,90580.0,90579.0,0.24935095]
[1764942587978,1e-08,90580.0,90579.0,0.24835095]
[1764942588506,1e-08,90580.0,90579.0,0.24435095]
[1764942589769,1e-08,90580.0,90579.0,0.24635095]
[1764942591653,1e-08,90580.0,90579.0,0.29626095]
[1764942592563,1e-08,90580.0,90579.0,0.24635095]
[1764942593146,1e-08,90580.0,90579.0,0.25292095]
[1764942594115,0.15616001,90580.0,90579.0,0.25292095]
[1764942594320,0.06455001,90580.0,90579.0,0.25292095]
[1764942594619,1e-08,90580.0,90579.0,0.25292095]
[1764942594998,0.06455001,90580.0,90579.0,0.25130808]
[1764942597025,1e-08,90580.0,90579.0,0.25130808]
[1764942597425,1e-08,90580.0,90579.0,0.30283095]
[1764942598663,1e-08,90580.0,90579.0,0.25292095]
[1764942600146,0.06661001,90580.0,90579.0,0.25292095]
[1764942601546,1e-08,90580.0,90579.0,0.25292095]
[1764942602512,1e-08,90580.0,90579.0,0.22937173]
[1764942602724,1.6445533,90580.0,90579.0,0.00857]
[1764942602927,1.6445533,90580.0,90533.0,1.10456933]
[1764942602928,0.23188472,90563.0,90560.0,0.0110424]
[1764942603250,0.23188682,90562.0,90558.0,0.23189557]
[1764942603444,0.04606,90558.0,90556.0,0.23189932]
[1764942603701,0.04606,90558.0,90554.0,0.22086065]
[1764942603702,0.04067,90557.0,90555.0,0.22085963]
[1764942603898,0.09605,90557.0,90556.0,0.22085708]
[1764942604297,0.16266,90557.0,90556.0,0.22085708]
[1764942605414,0.16266,90557.0,90556.0,0.22085781]
[1764942606028,0.16666,90557.0,90556.0,0.22085781]
[1764942606443,0.16666,90557.0,90555.0,0.23190264]
[1764942606654,0.323,90552.0,90546.0,0.01104411]
[1764942606861,0.0216,90551.0,90547.0,0.01104398]
[1764942607063,0.06661,90547.0,90546.0,0.2208822]
[1764942607478,0.06661,90547.0,90545.0,0.22088299]
[1764942607479,0.323,90546.0,90545.0,0.22088313]
[1764942607695,0.36367,90546.0,90545.0,0.22088313]
[1764942607897,0.45972,90546.0,90545.0,0.22088313]
[1764942609083,0.46272,90546.0,90545.0,0.22088313]